[Event "Titled Tuesday Blitz November 29 Early 2022"]
[White "Sadovsky, Artem"]
[Black "Petrova, Irina"]
[WhiteFideId "4155840"]
[BlackFideId "14124122"]
[WhiteElo "2312"]
[BlackElo "2023"]
[Result "0-1"]
[Round "10"]
[TimeControl "180+1"]
[Date "2022.11.30"]
[WhiteClock "0:01:46"]
[BlackClock "0:01:31"]

1. d4 {[%clk 0:02:34]}  d6 {[%clk 0:03:00]} 2. Qd3 {[%clk 0:02:30]}  Nf6 {[%clk 0:02:56]} 3. Qb5+ {[%clk 0:02:30]}  c6 {[%clk 0:02:55]} 4. Qb3 {[%clk 0:02:30]}  g6 {[%clk 0:02:53]} 5. Nf3 {[%clk 0:01:50]}  Bg7 {[%clk 0:02:53]} 6. Ng5 {[%clk 0:01:50]}  O-O {[%clk 0:02:52]} 7. e4 {[%clk 0:01:50]}  a5 {[%clk 0:02:48]} 8. Bc4 {[%clk 0:01:50]}  d5 {[%clk 0:02:47]} 9. exd5 {[%clk 0:01:49]}  cxd5 {[%clk 0:02:45]} 10. Be2 {[%clk 0:01:49]}  Nc6 {[%clk 0:02:45]} 11. c3 {[%clk 0:01:48]}  Bf5 {[%clk 0:02:41]} 12. O-O {[%clk 0:01:48]}  Qc7 {[%clk 0:02:39]} 13. g3 {[%clk 0:01:47]}  a4 {[%clk 0:02:37]} 14. Qd1 {[%clk 0:01:47]}  Ne4 {[%clk 0:02:28]} 15. Na3 {[%clk 0:01:45]}  Qb6 {[%clk 0:02:22]} 16. Nxe4 {[%clk 0:01:43]}  Bxe4 {[%clk 0:02:20]} 17. f3 {[%clk 0:01:43]}  Bf5 {[%clk 0:02:20]} 18. Be3 {[%clk 0:01:42]}  Qxb2 {[%clk 0:02:11]} 19. Nb5 {[%clk 0:01:42]}  e5 {[%clk 0:02:00]} 20. Rb1 {[%clk 0:01:42]}  Qxb1 {[%clk 0:01:59]} 21. Qxb1 {[%clk 0:01:41]}  Bxb1 {[%clk 0:02:00]} 22. Rxb1 {[%clk 0:01:42]}  exd4 {[%clk 0:02:00]} 23. cxd4 {[%clk 0:01:43]}  Rfe8 {[%clk 0:01:55]} 24. Kf2 {[%clk 0:01:44]}  Rac8 {[%clk 0:01:52]} 25. Nd6 {[%clk 0:01:43]}  Nxd4 {[%clk 0:01:40]} 26. Nxe8 {[%clk 0:01:44]}  Rxe8 {[%clk 0:01:40]} 27. Rxb7 {[%clk 0:01:43]}  Nxe2 {[%clk 0:01:39]} 28. Kxe2 {[%clk 0:01:44]}  d4 {[%clk 0:01:39]} 29. Rb8 {[%clk 0:01:42]}  Rxb8 {[%clk 0:01:37]} 30. Bf4 {[%clk 0:01:43]}  Rb2+ {[%clk 0:01:36]} 31. Kd3 {[%clk 0:01:42]}  Rxa2 {[%clk 0:01:36]} 32. Kc4 {[%clk 0:01:43]}  a3 {[%clk 0:01:34]} 33. Kd5 {[%clk 0:01:44]}  d3 {[%clk 0:01:32]} 34. Kc6 {[%clk 0:01:45]}  d2 {[%clk 0:01:32]} 35. Kd7 {[%clk 0:01:46]}  d1=Q+ {[%clk 0:01:31]} 36. Ke8 {[%clk 0:01:47]}  Re2+ {[%clk 0:01:31]} 37. Be3 {[%clk 0:01:46]}  Rxe3# {[%clk 0:01:31]} 0-1


[Site "https://www.chess.com"]

[Event "Titled Tuesday Blitz November 29 Early 2022"]
[White "Salinas Herrera, Pablo"]
[Black "Ambartsumova, Karina"]
[WhiteFideId "3407128"]
[BlackFideId "4166299"]
[WhiteElo "2557"]
[BlackElo "2319"]
[Result "1-0"]
[Round "10"]
[TimeControl "180+1"]
[Date "2022.11.30"]
[WhiteClock "0:00:05"]
[BlackClock "0:00:01"]

1. e4 {[%clk 0:03:00]}  e5 {[%clk 0:02:59]} 2. Nf3 {[%clk 0:02:59]}  Nc6 {[%clk 0:03:00]} 3. Bc4 {[%clk 0:02:58]}  Nf6 {[%clk 0:02:57]} 4. d3 {[%clk 0:02:51]}  h6 {[%clk 0:02:57]} 5. a4 {[%clk 0:02:50]}  g5 {[%clk 0:02:53]} 6. O-O {[%clk 0:02:48]}  Bg7 {[%clk 0:02:52]} 7. Nc3 {[%clk 0:02:48]}  d6 {[%clk 0:02:52]} 8. a5 {[%clk 0:02:41]}  a6 {[%clk 0:02:48]} 9. Be3 {[%clk 0:02:39]}  Be6 {[%clk 0:02:38]} 10. Nd5 {[%clk 0:02:39]}  Qd7 {[%clk 0:02:35]} 11. Nd2 {[%clk 0:02:29]}  O-O {[%clk 0:02:09]} 12. Nxf6+ {[%clk 0:02:05]}  Bxf6 {[%clk 0:02:08]} 13. h4 {[%clk 0:02:05]}  Kg7 {[%clk 0:02:04]} 14. Bxe6 {[%clk 0:01:56]}  fxe6 {[%clk 0:01:56]} 15. Qg4 {[%clk 0:01:56]}  Qe7 {[%clk 0:01:47]} 16. hxg5 {[%clk 0:01:54]}  hxg5 {[%clk 0:01:30]} 17. g3 {[%clk 0:01:53]}  Rh8 {[%clk 0:01:22]} 18. Nf3 {[%clk 0:01:51]}  Rag8 {[%clk 0:01:15]} 19. c3 {[%clk 0:01:42]}  Nd8 {[%clk 0:00:51]} 20. Kg2 {[%clk 0:01:37]}  Nf7 {[%clk 0:00:51]} 21. Nh2 {[%clk 0:00:57]}  Nh6 {[%clk 0:00:42]} 22. Qe2 {[%clk 0:00:56]}  Qf7 {[%clk 0:00:42]} 23. Rh1 {[%clk 0:00:56]}  Qg6 {[%clk 0:00:40]} 24. Ng4 {[%clk 0:00:56]}  Nf7 {[%clk 0:00:38]} 25. Qf3 {[%clk 0:00:45]}  Be7 {[%clk 0:00:33]} 26. d4 {[%clk 0:00:42]}  d5 {[%clk 0:00:22]} 27. dxe5 {[%clk 0:00:26]}  dxe4 {[%clk 0:00:20]} 28. Qe2 {[%clk 0:00:26]}  Qf5 {[%clk 0:00:18]} 29. Rad1 {[%clk 0:00:24]}  Rd8 {[%clk 0:00:16]} 30. Rxh8 {[%clk 0:00:22]}  Kxh8 {[%clk 0:00:14]} 31. Rxd8+ {[%clk 0:00:17]}  Bxd8 {[%clk 0:00:15]} 32. Bd4 {[%clk 0:00:15]}  Kg7 {[%clk 0:00:15]} 33. b4 {[%clk 0:00:15]}  c6 {[%clk 0:00:13]} 34. Ne3 {[%clk 0:00:15]}  Qg6 {[%clk 0:00:12]} 35. Nc4 {[%clk 0:00:15]}  Bc7 {[%clk 0:00:12]} 36. g4 {[%clk 0:00:13]}  Kf8 {[%clk 0:00:12]} 37. Qe3 {[%clk 0:00:11]}  Kg8 {[%clk 0:00:11]} 38. Qg3 {[%clk 0:00:10]}  Kf8 {[%clk 0:00:08]} 39. Nd2 {[%clk 0:00:08]}  Kg8 {[%clk 0:00:07]} 40. Qh2 {[%clk 0:00:07]}  Qg7 {[%clk 0:00:07]} 41. Nxe4 {[%clk 0:00:06]}  Bxe5 {[%clk 0:00:07]} 42. Bxe5 {[%clk 0:00:04]}  Nxe5 {[%clk 0:00:07]} 43. Qg3 {[%clk 0:00:04]}  Kh7 {[%clk 0:00:02]} 44. Qh3+ {[%clk 0:00:04]}  Kg8 {[%clk 0:00:02]} 45. Qg3 {[%clk 0:00:04]}  Kh7 {[%clk 0:00:03]} 46. Nc5 {[%clk 0:00:05]}  Nc4 {[%clk 0:00:03]} 47. Nxe6 {[%clk 0:00:04]}  Qg6 {[%clk 0:00:03]} 48. Nd4 {[%clk 0:00:04]}  Nd6 {[%clk 0:00:02]} 49. Qf3 {[%clk 0:00:04]}  Kh8 {[%clk 0:00:01]} 50. Qf8+ {[%clk 0:00:03]}  Kh7 {[%clk 0:00:01]} 51. Qf3 {[%clk 0:00:04]}  Kg8 {[%clk 0:00:01]} 52. Ne2 {[%clk 0:00:05]}  Ne4 {[%clk 0:00:01]} 53. Nd4 {[%clk 0:00:05]}  Nd6 {[%clk 0:00:01]} 54. Qe3 {[%clk 0:00:05]} 1-0


[Site "https://www.chess.com"]

[Event "Titled Tuesday Blitz November 29 Early 2022"]
[White "Salman, Pavel"]
[Black "Sokolovsky, Yahli"]
[WhiteFideId "24153753"]
[BlackFideId "2820242"]
[WhiteElo "2187"]
[BlackElo "2316"]
[Result "1-0"]
[Round "10"]
[TimeControl "180+1"]
[Date "2022.11.30"]
[WhiteClock "0:00:40"]
[BlackClock "0:00:01"]

1. Nf3 {[%clk 0:03:00]}  d5 {[%clk 0:02:59]} 2. g3 {[%clk 0:03:00]}  g6 {[%clk 0:02:55]} 3. Bg2 {[%clk 0:03:00]}  Bg7 {[%clk 0:02:55]} 4. O-O {[%clk 0:03:01]}  e5 {[%clk 0:02:55]} 5. d3 {[%clk 0:03:01]}  Ne7 {[%clk 0:02:52]} 6. Nbd2 {[%clk 0:03:01]}  O-O {[%clk 0:02:52]} 7. e4 {[%clk 0:03:02]}  d4 {[%clk 0:02:50]} 8. Nc4 {[%clk 0:03:01]}  Nbc6 {[%clk 0:02:51]} 9. a4 {[%clk 0:03:01]}  h6 {[%clk 0:02:49]} 10. Nfd2 {[%clk 0:02:53]}  Be6 {[%clk 0:02:40]} 11. f4 {[%clk 0:02:53]}  exf4 {[%clk 0:02:40]} 12. gxf4 {[%clk 0:02:53]}  f5 {[%clk 0:02:41]} 13. b3 {[%clk 0:02:44]}  Qd7 {[%clk 0:02:41]} 14. Ba3 {[%clk 0:02:38]}  Rf7 {[%clk 0:02:41]} 15. Qe2 {[%clk 0:02:28]}  a6 {[%clk 0:02:30]} 16. a5 {[%clk 0:02:24]}  Raf8 {[%clk 0:02:30]} 17. e5 {[%clk 0:02:15]}  Re8 {[%clk 0:02:26]} 18. Bxe7 {[%clk 0:02:11]}  Rfxe7 {[%clk 0:02:21]} 19. Qf2 {[%clk 0:02:05]}  Bd5 {[%clk 0:02:20]} 20. Nf3 {[%clk 0:01:58]}  Rd8 {[%clk 0:02:09]} 21. Qg3 {[%clk 0:01:53]}  Kh7 {[%clk 0:02:03]} 22. Qh4 {[%clk 0:01:46]}  Kg8 {[%clk 0:02:02]} 23. Qg3 {[%clk 0:01:43]}  Re6 {[%clk 0:02:02]} 24. Rf2 {[%clk 0:01:40]}  Qe7 {[%clk 0:01:37]} 25. Nh4 {[%clk 0:01:32]}  Kh7 {[%clk 0:01:36]} 26. Bxd5 {[%clk 0:01:29]}  Rxd5 {[%clk 0:01:37]} 27. Rg2 {[%clk 0:01:30]}  Qf7 {[%clk 0:01:35]} 28. Kh1 {[%clk 0:01:23]}  Ne7 {[%clk 0:01:30]} 29. Rag1 {[%clk 0:01:20]}  Rd8 {[%clk 0:01:21]} 30. Nf3 {[%clk 0:01:20]}  Kg8 {[%clk 0:00:38]} 31. Qf2 {[%clk 0:01:18]}  Nc6 {[%clk 0:00:34]} 32. Ncd2 {[%clk 0:01:18]}  Rd5 {[%clk 0:00:26]} 33. Nh4 {[%clk 0:01:17]}  Ne7 {[%clk 0:00:24]} 34. Ndf3 {[%clk 0:01:17]}  c5 {[%clk 0:00:22]} 35. Qg3 {[%clk 0:01:05]}  Kh7 {[%clk 0:00:21]} 36. Qh3 {[%clk 0:01:05]}  Kg8 {[%clk 0:00:14]} 37. Qg3 {[%clk 0:01:05]}  Kh7 {[%clk 0:00:13]} 38. Nd2 {[%clk 0:01:05]}  Rd8 {[%clk 0:00:06]} 39. Nc4 {[%clk 0:01:05]}  Rd7 {[%clk 0:00:06]} 40. Nf3 {[%clk 0:01:04]}  Nc6 {[%clk 0:00:05]} 41. Nd6 {[%clk 0:01:04]}  Rdxd6 {[%clk 0:00:06]} 42. exd6 {[%clk 0:01:04]}  Rxd6 {[%clk 0:00:07]} 43. Re1 {[%clk 0:01:00]}  Ne7 {[%clk 0:00:07]} 44. Qh4 {[%clk 0:00:57]}  Kg8 {[%clk 0:00:07]} 45. Qxe7 {[%clk 0:00:56]}  Qd5 {[%clk 0:00:03]} 46. Qe2 {[%clk 0:00:46]}  Kh7 {[%clk 0:00:02]} 47. Kg1 {[%clk 0:00:46]}  Rd7 {[%clk 0:00:01]} 48. Qe6 {[%clk 0:00:43]}  Qxf3 {[%clk 0:00:01]} 49. Qxg6+ {[%clk 0:00:40]} 1-0


[Site "https://www.chess.com"]

[Event "Titled Tuesday Blitz November 29 Early 2022"]
[White "Shuvalov, Evgenij"]
[Black "Szpar, Milosz"]
[WhiteFideId "4187237"]
[BlackFideId "1184989"]
[WhiteElo "2049"]
[BlackElo "2422"]
[Result "0-1"]
[Round "10"]
[TimeControl "180+1"]
[Date "2022.11.30"]
[WhiteClock "0:00:28"]
[BlackClock "0:00:14"]

1. b4 {[%clk 0:03:00]}  e5 {[%clk 0:02:52]} 2. Bb2 {[%clk 0:03:00]}  Bxb4 {[%clk 0:02:52]} 3. Bxe5 {[%clk 0:03:00]}  Nf6 {[%clk 0:02:53]} 4. Nc3 {[%clk 0:03:00]}  Ng4 {[%clk 0:01:49]} 5. Bg3 {[%clk 0:02:27]}  d5 {[%clk 0:01:44]} 6. e4 {[%clk 0:02:20]}  Bxc3 {[%clk 0:01:42]} 7. dxc3 {[%clk 0:02:19]}  dxe4 {[%clk 0:01:42]} 8. Qxd8+ {[%clk 0:02:19]}  Kxd8 {[%clk 0:01:43]} 9. Bc4 {[%clk 0:02:14]}  f6 {[%clk 0:01:19]} 10. Rd1+ {[%clk 0:02:06]}  Bd7 {[%clk 0:01:09]} 11. Ne2 {[%clk 0:02:00]}  Kc8 {[%clk 0:01:04]} 12. Nf4 {[%clk 0:01:53]}  Nc6 {[%clk 0:01:03]} 13. Nd5 {[%clk 0:01:51]}  Nge5 {[%clk 0:01:01]} 14. Be2 {[%clk 0:01:48]}  Re8 {[%clk 0:00:59]} 15. O-O {[%clk 0:01:45]}  Bg4 {[%clk 0:00:51]} 16. Rfe1 {[%clk 0:01:43]}  Bxe2 {[%clk 0:00:44]} 17. Rxe2 {[%clk 0:01:44]}  f5 {[%clk 0:00:32]} 18. Red2 {[%clk 0:01:17]}  b6 {[%clk 0:00:29]} 19. Nb4 {[%clk 0:01:11]}  Kb7 {[%clk 0:00:26]} 20. Nxc6 {[%clk 0:01:08]}  Kxc6 {[%clk 0:00:25]} 21. Bxe5 {[%clk 0:01:08]}  Rxe5 {[%clk 0:00:26]} 22. Rd7 {[%clk 0:01:08]}  Rc5 {[%clk 0:00:25]} 23. Rxg7 {[%clk 0:01:06]}  Rxc3 {[%clk 0:00:25]} 24. Rd2 {[%clk 0:01:03]}  f4 {[%clk 0:00:22]} 25. Rxh7 {[%clk 0:01:00]}  e3 {[%clk 0:00:22]} 26. fxe3 {[%clk 0:01:01]}  fxe3 {[%clk 0:00:23]} 27. Re2 {[%clk 0:01:01]}  Rd8 {[%clk 0:00:23]} 28. g4 {[%clk 0:00:58]}  Rd2 {[%clk 0:00:22]} 29. Kf1 {[%clk 0:00:55]}  Rcxc2 {[%clk 0:00:23]} 30. Rxe3 {[%clk 0:00:54]}  Rxa2 {[%clk 0:00:19]} 31. g5 {[%clk 0:00:49]}  Rf2+ {[%clk 0:00:18]} 32. Ke1 {[%clk 0:00:46]}  Rg2 {[%clk 0:00:19]} 33. Kf1 {[%clk 0:00:40]}  Rxg5 {[%clk 0:00:18]} 34. Ree7 {[%clk 0:00:37]}  Rf5+ {[%clk 0:00:15]} 35. Ke1 {[%clk 0:00:37]}  Kb5 {[%clk 0:00:15]} 36. Rxc7 {[%clk 0:00:36]}  a5 {[%clk 0:00:16]} 37. h4 {[%clk 0:00:34]}  a4 {[%clk 0:00:14]} 38. h5 {[%clk 0:00:33]}  Rg5 {[%clk 0:00:14]} 39. Rcg7 {[%clk 0:00:31]}  Rxg7 {[%clk 0:00:13]} 40. Rxg7 {[%clk 0:00:32]}  Rh2 {[%clk 0:00:13]} 41. Rh7 {[%clk 0:00:31]}  Kb4 {[%clk 0:00:13]} 42. h6 {[%clk 0:00:30]}  a3 {[%clk 0:00:13]} 43. Kd1 {[%clk 0:00:29]}  a2 {[%clk 0:00:13]} 44. Ra7 {[%clk 0:00:29]}  Rh1+ {[%clk 0:00:11]} 45. Kc2 {[%clk 0:00:28]}  a1=Q {[%clk 0:00:11]} 46. Rxa1 {[%clk 0:00:27]}  Rxa1 {[%clk 0:00:12]} 47. Kd3 {[%clk 0:00:27]}  Rh1 {[%clk 0:00:13]} 48. Ke4 {[%clk 0:00:28]}  Rxh6 {[%clk 0:00:14]} 0-1


[Site "https://www.chess.com"]

[Event "Titled Tuesday Blitz November 29 Early 2022"]
[White "Tarasova, Viktoriya"]
[Black "Bowden, Karl"]
[WhiteFideId "4175840"]
[BlackFideId "400548"]
[WhiteElo "2182"]
[BlackElo "2481"]
[Result "1-0"]
[Round "10"]
[TimeControl "180+1"]
[Date "2022.11.30"]
[WhiteClock "0:01:07"]
[BlackClock "0:00:11"]

1. d4 {[%clk 0:03:00]}  Nf6 {[%clk 0:02:57]} 2. c4 {[%clk 0:03:00]}  c5 {[%clk 0:02:57]} 3. d5 {[%clk 0:03:00]}  Ne4 {[%clk 0:02:58]} 4. Qc2 {[%clk 0:02:59]}  Qa5+ {[%clk 0:02:56]} 5. Nd2 {[%clk 0:02:59]}  Nd6 {[%clk 0:02:55]} 6. e4 {[%clk 0:02:58]}  g6 {[%clk 0:02:55]} 7. Bd3 {[%clk 0:02:57]}  Bg7 {[%clk 0:02:55]} 8. Nf3 {[%clk 0:02:57]}  Na6 {[%clk 0:02:53]} 9. O-O {[%clk 0:02:49]}  Nb4 {[%clk 0:02:36]} 10. Qb1 {[%clk 0:02:49]}  Nxd3 {[%clk 0:02:36]} 11. Qxd3 {[%clk 0:02:49]}  O-O {[%clk 0:02:35]} 12. Nb3 {[%clk 0:02:40]}  Qc7 {[%clk 0:02:20]} 13. e5 {[%clk 0:02:29]}  Nf5 {[%clk 0:02:13]} 14. Bf4 {[%clk 0:02:30]}  d6 {[%clk 0:01:39]} 15. Rfe1 {[%clk 0:02:28]}  a5 {[%clk 0:01:36]} 16. Nbd2 {[%clk 0:02:15]}  a4 {[%clk 0:01:25]} 17. Re2 {[%clk 0:02:09]}  dxe5 {[%clk 0:01:05]} 18. Bxe5 {[%clk 0:02:03]}  Bxe5 {[%clk 0:01:03]} 19. Rxe5 {[%clk 0:02:01]}  a3 {[%clk 0:01:01]} 20. b3 {[%clk 0:01:55]}  e6 {[%clk 0:00:50]} 21. Rae1 {[%clk 0:01:30]}  f6 {[%clk 0:00:42]} 22. R5e2 {[%clk 0:01:29]}  e5 {[%clk 0:00:42]} 23. Ne4 {[%clk 0:01:29]}  Nd6 {[%clk 0:00:35]} 24. Nxd6 {[%clk 0:01:25]}  Qxd6 {[%clk 0:00:35]} 25. Nd2 {[%clk 0:01:26]}  Bf5 {[%clk 0:00:35]} 26. Qf3 {[%clk 0:01:23]}  Rae8 {[%clk 0:00:19]} 27. g4 {[%clk 0:01:21]}  Bc2 {[%clk 0:00:16]} 28. Qc3 {[%clk 0:01:14]}  Qd7 {[%clk 0:00:16]} 29. h3 {[%clk 0:01:13]}  h5 {[%clk 0:00:11]} 30. Qxc2 {[%clk 0:01:10]}  e4 {[%clk 0:00:11]} 31. Rxe4 {[%clk 0:01:09]}  hxg4 {[%clk 0:00:11]} 32. Rxe8 {[%clk 0:01:07]} 1-0


[Site "https://www.chess.com"]

[Event "Titled Tuesday Blitz November 29 Early 2022"]
[White "Trost, Edvin"]
[Black "Ismayil, Malak"]
[WhiteFideId "1729519"]
[BlackFideId "13412604"]
[WhiteElo "2247"]
[BlackElo "1879"]
[Result "1-0"]
[Round "10"]
[TimeControl "180+1"]
[Date "2022.11.30"]
[WhiteClock "0:01:36"]
[BlackClock "0:00:56"]

1. d4 {[%clk 0:03:00]}  Nf6 {[%clk 0:03:00]} 2. Nf3 {[%clk 0:03:00]}  g6 {[%clk 0:02:53]} 3. c4 {[%clk 0:02:50]}  Bg7 {[%clk 0:02:53]} 4. Nc3 {[%clk 0:02:50]}  O-O {[%clk 0:02:53]} 5. e4 {[%clk 0:02:50]}  d6 {[%clk 0:02:54]} 6. h3 {[%clk 0:02:42]}  e5 {[%clk 0:02:49]} 7. dxe5 {[%clk 0:02:38]}  dxe5 {[%clk 0:02:50]} 8. Qxd8 {[%clk 0:02:37]}  Rxd8 {[%clk 0:02:50]} 9. Bg5 {[%clk 0:02:38]}  Re8 {[%clk 0:02:49]} 10. O-O-O {[%clk 0:02:37]}  c6 {[%clk 0:02:46]} 11. Nxe5 {[%clk 0:02:36]}  h6 {[%clk 0:02:38]} 12. Bf4 {[%clk 0:02:11]}  Na6 {[%clk 0:02:25]} 13. Bh2 {[%clk 0:02:08]}  Nc5 {[%clk 0:02:05]} 14. Bd3 {[%clk 0:02:08]}  Be6 {[%clk 0:01:45]} 15. Rhe1 {[%clk 0:01:51]}  Nxd3+ {[%clk 0:01:41]} 16. Rxd3 {[%clk 0:01:49]}  Bxc4 {[%clk 0:01:40]} 17. Nxc4 {[%clk 0:01:42]}  b5 {[%clk 0:01:09]} 18. Nd6 {[%clk 0:01:37]}  Re7 {[%clk 0:01:09]} 19. e5 {[%clk 0:01:37]}  Nd7 {[%clk 0:01:08]} 20. f4 {[%clk 0:01:37]}  Nc5 {[%clk 0:01:08]} 21. Rd2 {[%clk 0:01:36]}  b4 {[%clk 0:01:06]} 22. Nce4 {[%clk 0:01:36]}  Ne6 {[%clk 0:01:05]} 23. Kb1 {[%clk 0:01:34]}  a5 {[%clk 0:01:03]} 24. Rc1 {[%clk 0:01:34]}  Ra6 {[%clk 0:00:58]} 25. g4 {[%clk 0:01:34]}  g5 {[%clk 0:00:56]} 26. f5 {[%clk 0:01:34]}  Nf4 {[%clk 0:00:56]} 27. Bxf4 {[%clk 0:01:34]}  gxf4 {[%clk 0:00:57]} 28. f6 {[%clk 0:01:35]}  Rxe5 {[%clk 0:00:56]} 29. fxg7 {[%clk 0:01:36]} 1-0


[Site "https://www.chess.com"]

[Event "Titled Tuesday Blitz November 29 Early 2022"]
[White "Urazayev, Arystanbek"]
[Black "Gabdrakhmanov, Azat"]
[WhiteFideId "13709810"]
[BlackFideId "34189197"]
[WhiteElo "2441"]
[BlackElo "2254"]
[Result "1-0"]
[Round "10"]
[TimeControl "180+1"]
[Date "2022.11.29"]
[WhiteClock "0:01:00"]
[BlackClock "0:00:14"]

1. c4 {[%clk 0:02:56]}  Nf6 {[%clk 0:02:58]} 2. Nc3 {[%clk 0:02:56]}  c5 {[%clk 0:02:58]} 3. g3 {[%clk 0:02:56]}  g6 {[%clk 0:02:56]} 4. Bg2 {[%clk 0:02:57]}  Bg7 {[%clk 0:02:57]} 5. d3 {[%clk 0:02:57]}  O-O {[%clk 0:02:57]} 6. Rb1 {[%clk 0:02:57]}  Nc6 {[%clk 0:02:58]} 7. Bd2 {[%clk 0:02:58]}  e6 {[%clk 0:02:56]} 8. Nf3 {[%clk 0:02:52]}  d5 {[%clk 0:02:55]} 9. O-O {[%clk 0:02:50]}  d4 {[%clk 0:02:54]} 10. Na4 {[%clk 0:02:50]}  Nd7 {[%clk 0:02:54]} 11. a3 {[%clk 0:02:50]}  a5 {[%clk 0:02:53]} 12. b4 {[%clk 0:02:49]}  axb4 {[%clk 0:02:53]} 13. axb4 {[%clk 0:02:49]}  cxb4 {[%clk 0:02:52]} 14. Bxb4 {[%clk 0:02:50]}  Nxb4 {[%clk 0:02:51]} 15. Rxb4 {[%clk 0:02:51]}  Qc7 {[%clk 0:02:40]} 16. Rb1 {[%clk 0:02:46]}  Ra6 {[%clk 0:02:31]} 17. Nd2 {[%clk 0:02:41]}  Nf6 {[%clk 0:02:16]} 18. c5 {[%clk 0:02:37]}  Nd5 {[%clk 0:02:13]} 19. Nc4 {[%clk 0:02:24]}  Bd7 {[%clk 0:01:58]} 20. Nab6 {[%clk 0:02:25]}  Nc3 {[%clk 0:01:43]} 21. Qb3 {[%clk 0:02:12]}  Nxb1 {[%clk 0:01:42]} 22. Nxd7 {[%clk 0:02:12]}  Qxd7 {[%clk 0:01:36]} 23. Rxb1 {[%clk 0:02:13]}  Ra5 {[%clk 0:01:22]} 24. Qb6 {[%clk 0:02:08]}  Ra2 {[%clk 0:00:58]} 25. Bxb7 {[%clk 0:02:06]}  Qd8 {[%clk 0:00:50]} 26. Qxd8 {[%clk 0:02:04]}  Rxd8 {[%clk 0:00:49]} 27. c6 {[%clk 0:02:05]}  Rxe2 {[%clk 0:00:44]} 28. c7 {[%clk 0:02:04]}  Rf8 {[%clk 0:00:45]} 29. c8=Q {[%clk 0:01:59]}  Rxc8 {[%clk 0:00:45]} 30. Bxc8 {[%clk 0:02:00]}  Bf8 {[%clk 0:00:46]} 31. Bb7 {[%clk 0:01:50]}  h5 {[%clk 0:00:45]} 32. h4 {[%clk 0:01:50]}  Rc2 {[%clk 0:00:40]} 33. Be4 {[%clk 0:01:43]}  Rc3 {[%clk 0:00:37]} 34. Rd1 {[%clk 0:01:38]}  f5 {[%clk 0:00:32]} 35. Bf3 {[%clk 0:01:37]}  Bg7 {[%clk 0:00:32]} 36. Kf1 {[%clk 0:01:18]}  e5 {[%clk 0:00:32]} 37. Bd5+ {[%clk 0:01:17]}  Kf8 {[%clk 0:00:31]} 38. Ra1 {[%clk 0:01:12]}  Bf6 {[%clk 0:00:27]} 39. Ra8+ {[%clk 0:01:04]}  Kg7 {[%clk 0:00:25]} 40. Nd6 {[%clk 0:01:03]}  Kh7 {[%clk 0:00:16]} 41. Ra7+ {[%clk 0:01:01]}  Kh8 {[%clk 0:00:15]} 42. Nf7+ {[%clk 0:01:02]}  Kg8 {[%clk 0:00:14]} 43. Nxe5+ {[%clk 0:01:02]}  Kf8 {[%clk 0:00:14]} 44. Rf7+ {[%clk 0:01:00]} 1-0


[Site "https://www.chess.com"]

[Event "Titled Tuesday Blitz November 29 Early 2022"]
[White "Womacka, Mathias"]
[Black "Jiganchine, Roman"]
[WhiteFideId "4611390"]
[BlackFideId "2603667"]
[WhiteElo "2378"]
[BlackElo "2328"]
[Result "1-0"]
[Round "10"]
[TimeControl "180+1"]
[Date "2022.11.30"]
[WhiteClock "0:00:13"]
[BlackClock "0:00:01"]

1. e4 {[%clk 0:03:00]}  c6 {[%clk 0:02:58]} 2. d4 {[%clk 0:02:59]}  d5 {[%clk 0:02:58]} 3. Nd2 {[%clk 0:03:00]}  dxe4 {[%clk 0:02:57]} 4. Nxe4 {[%clk 0:03:01]}  Nf6 {[%clk 0:02:57]} 5. Nxf6+ {[%clk 0:03:00]}  exf6 {[%clk 0:02:58]} 6. Bc4 {[%clk 0:03:00]}  Bd6 {[%clk 0:02:57]} 7. Qe2+ {[%clk 0:02:59]}  Be7 {[%clk 0:02:54]} 8. Nf3 {[%clk 0:02:58]}  O-O {[%clk 0:02:53]} 9. O-O {[%clk 0:02:58]}  Na6 {[%clk 0:02:43]} 10. Re1 {[%clk 0:02:58]}  Bd6 {[%clk 0:02:40]} 11. c3 {[%clk 0:02:53]}  Nc7 {[%clk 0:02:40]} 12. h3 {[%clk 0:02:34]}  Ne6 {[%clk 0:02:34]} 13. Be3 {[%clk 0:02:26]}  Bd7 {[%clk 0:02:29]} 14. Rad1 {[%clk 0:02:19]}  a5 {[%clk 0:02:28]} 15. d5 {[%clk 0:02:17]}  cxd5 {[%clk 0:02:10]} 16. Bxd5 {[%clk 0:02:12]}  Qc7 {[%clk 0:02:07]} 17. Qd2 {[%clk 0:02:06]}  Ra6 {[%clk 0:01:51]} 18. Nd4 {[%clk 0:01:46]}  Nxd4 {[%clk 0:01:37]} 19. Bxd4 {[%clk 0:01:47]}  Bf5 {[%clk 0:01:29]} 20. Qe3 {[%clk 0:01:40]}  a4 {[%clk 0:01:20]} 21. Qf3 {[%clk 0:01:40]}  Bc8 {[%clk 0:01:14]} 22. c4 {[%clk 0:01:38]}  Bb4 {[%clk 0:01:07]} 23. Bc3 {[%clk 0:01:34]}  Bc5 {[%clk 0:01:05]} 24. Re4 {[%clk 0:01:22]}  f5 {[%clk 0:01:03]} 25. Re2 {[%clk 0:01:13]}  Rg6 {[%clk 0:00:59]} 26. Rde1 {[%clk 0:01:10]}  Qb6 {[%clk 0:00:56]} 27. Re8 {[%clk 0:01:05]}  Bd7 {[%clk 0:00:53]} 28. Rxf8+ {[%clk 0:01:05]}  Bxf8 {[%clk 0:00:53]} 29. Bxb7 {[%clk 0:01:03]}  h6 {[%clk 0:00:34]} 30. Bd5 {[%clk 0:01:01]}  Bc5 {[%clk 0:00:33]} 31. Rd1 {[%clk 0:00:39]}  Qa7 {[%clk 0:00:22]} 32. b4 {[%clk 0:00:29]}  axb3 {[%clk 0:00:21]} 33. axb3 {[%clk 0:00:30]}  Qa2 {[%clk 0:00:17]} 34. Bxf7+ {[%clk 0:00:25]}  Kxf7 {[%clk 0:00:12]} 35. Rxd7+ {[%clk 0:00:25]}  Ke8 {[%clk 0:00:07]} 36. Rd5 {[%clk 0:00:15]}  Bb6 {[%clk 0:00:05]} 37. Qxf5 {[%clk 0:00:14]}  Qb1+ {[%clk 0:00:01]} 38. Qxb1 {[%clk 0:00:13]} 1-0


[Site "https://www.chess.com"]